bitfinex/quotes_ETHUSD_20250620
["timestamp","ask_amount","ask_price","bid_price","bid_amount"]
[1750432825446,9.4084,2502.2,2501.9,3.99687713]
[1750432825663,9.95,2502.1,2501.6,3.99732756]
[1750432825812,9.95,2502.1,2501.7,3.99720826]
[1750432826004,13.94678733,2502.1,2501.6,3.99742222]
[1750432826206,0.8167,2501.9,2501.2,3.99793935]
[1750432826450,10.78026507,2501.8,2501.3,3.99789998]
[1750432826609,4.81371249,2501.9,2501.5,3.99752273]
[1750432826610,8.579,2501.7,2501.5,3.99752273]
[1750432827016,0.55,2501.6,2501.2,3.99794946]
[1750432827217,0.55,2501.6,2501.4,3.99768545]
[1750432827627,10.55,2501.6,2501.3,3.99783753]
[1750432827833,10.5,2501.6,2501.4,3.99774883]
[1750432828742,18.631,2501.5,2501.4,3.99774883]
[1750432828916,18.581,2501.5,2501.4,3.99774883]
[1750432829116,8.581,2501.5,2501.4,3.99774883]
[1750432829654,0.8167,2501.7,2501.6,3.99744163]
[1750432829881,18.631,2501.7,2501.6,3.99744163]
[1750432830082,0.39641973,2502.2,2501.6,0.7899]
[1750432830369,16.6,2502.6,2501.7,4.03725113]
[1750432830576,10.0,2502.5,2501.8,0.48271511]
[1750432830866,0.55,2502.5,2502.2,3.99641649]
[1750432831014,20.59585034,2502.6,2502.1,3.99657252]
[1750432831219,10.0,2502.5,2502.1,3.99657252]
[1750432831537,0.5,2502.4,2502.0,3.9967111]
[1750432831730,10.0,2502.2,2501.6,0.7899]
[1750432832060,1.847,2502.1,2501.8,3.99703592]
[1750432832260,6.783,2502.0,2501.8,3.99703592]
[1750432832561,6.783,2502.0,2501.1,3.99822198]
[1750432832562,9.95,2501.9,2501.5,3.99749063]
[1750432832960,13.94708809,2501.9,2501.4,3.99770107]
[1750432833162,0.8054,2501.8,2501.5,3.99757928]
[1750432833329,6.783,2501.7,2501.5,3.99757928]
[1750432833534,1.797,2501.6,2501.5,3.99757928]
[1750432833769,1.797,2501.6,2501.4,3.99766628]
[1750432833946,1.797,2501.6,2501.3,3.99779392]
[1750432834145,1.797,2501.6,2500.8,0.791]
[1750432834457,1.797,2501.6,2501.3,3.99785494]
[1750432834758,10.55,2501.5,2501.3,3.99785565]
[1750432834963,10.5,2501.5,2501.3,3.99785565]
[1750432835132,16.783,2501.4,2501.2,3.99799709]
[1750432835454,6.783,2501.4,2501.2,3.99799709]
[1750432835836,6.783,2501.4,2500.8,0.791]
[1750432836047,6.783,2501.4,2501.2,3.9980479]
[1750432836456,6.783,2501.4,2500.0,3.8018]
[1750432836457,10.0,2501.1,2499.9,5.87851451]
[1750432836659,10.0,2500.9,2500.2,3.99968002]
[1750432836873,10.0,2500.9,2500.5,3.99912103]
[1750432837074,11.863,2500.9,2500.6,3.99902398]
[1750432837562,1.3554,2500.8,2500.5,3.99917835]
[1750432837763,1.3554,2500.8,2500.1,3.99984]
[1750432837764,0.8054,2500.8,2500.7,3.99888031]
[1750432837948,1.3554,2501.2,2500.9,3.99846131]
[1750432838264,19.18,2501.1,2501.0,3.99832188]
[1750432838632,1.847,2501.1,2500.6,3.99901334]
[1750432838844,1.847,2501.1,2500.9,3.99846951]
[1750432838845,8.63,2501.1,2500.9,3.99846951]
[1750432839038,8.63,2501.1,2501.0,3.99840063]
[1750432839360,8.63,2501.1,2500.9,3.99844881]
[1750432839862,8.63,2501.1,2500.8,3.99862301]
[1750432840369,1.847,2501.1,2501.0,3.99840063]
[1750432840575,8.63,2501.1,2501.0,3.99840063]
[1750432840774,8.63,2501.1,2500.9,3.99847888]
[1750432841072,0.7534,2501.0,2500.9,3.99847888]
[1750432841271,8.63,2501.1,2500.5,3.99917752]
[1750432841458,8.63,2501.1,2500.8,3.99864746]
[1750432841655,10.55,2501.0,2500.3,0.7644]
[1750432841956,10.55,2501.0,2499.9,8.66137375]
[1750432841957,0.55,2500.8,2500.6,3.99902899]
[1750432842158,7.333,2500.7,2500.6,3.99902899]
[1750432842344,7.333,2500.7,2500.5,3.99910811]
[1750432842567,7.333,2500.7,2500.6,3.99904023]
[1750432842775,0.7534,2500.9,2500.8,3.9987204]
[1750432842978,10.40009917,2501.3,2500.9,3.99849522]
[1750432842979,0.55,2501.1,2500.9,3.99849522]
[1750432843175,0.55,2501.1,2501.0,3.99840063]
[1750432843391,9.175,2501.1,2501.0,3.99840063]
[1750432843691,10.0,2501.0,2500.9,3.99847354]
[1750432844083,0.8258,2501.2,2501.0,3.99828286]
[1750432844280,8.625,2501.1,2500.8,3.99865802]
[1750432844593,10.0,2501.0,2500.9,3.99848884]
[1750432845107,10.0,2501.0,2500.8,3.99864275]
[1750432845471,10.0,2501.0,2500.9,3.99856051]
[1750432845872,10.0,2501.0,2500.6,0.7564]
[1750432845873,0.40009917,2501.3,2501.1,3.99824077]
[1750432846072,8.625,2501.2,2501.1,3.99824077]
[1750432846393,8.625,2501.2,2500.9,3.99845158]
[1750432846594,10.0,2501.2,2500.6,0.7564]
[1750432846894,0.55,2501.3,2501.1,3.99815047]
[1750432847100,8.625,2501.2,2501.1,3.99815047]
[1750432847771,1.842,2501.3,2501.2,3.99808092]
[1750432848095,8.625,2501.3,2501.2,3.99808092]
[1750432848595,9.602,2501.5,2501.4,3.99776125]
[1750432848891,1.842,2501.9,2501.8,3.99712207]
[1750432849110,8.624,2501.9,2501.8,3.99712207]
[1750432849304,8.624,2501.9,2501.6,3.99729519]
[1750432849461,10.0,2501.8,2501.7,3.99728184]
[1750432850206,10.0,2501.8,2501.6,3.99729519]
[1750432850207,0.7948,2502.1,2501.9,3.9969623]
[1750432850410,8.624,2502.0,2501.8,3.99708876]
[1750432850774,8.624,2502.0,2501.9,3.9969623]
[1750432851379,18.624,2502.0,2501.9,3.9969623]
[1750432851603,10.0,2502.0,2501.9,3.9969623]
[1750432851809,2.6368,2502.7,2502.1,0.8291]
[1750432852108,2.6368,2502.7,2502.6,3.99584432]
[1750432852109,18.623,2502.7,2502.6,3.99584432]
[1750432852516,8.623,2502.7,2502.6,3.99584432]
[1750432852721,18.623,2502.7,2502.6,3.99584432]
[1750432853032,18.623,2502.7,2502.4,3.99603158]
[1750432853332,18.623,2502.7,2502.1,0.8291]
[1750432853532,18.623,2502.7,2502.3,3.99624215]
[1750432853820,10.55,2502.4,2502.0,3.99678199]
[1750432853969,10.55,2502.4,2501.7,3.99725666]
[1750432854174,9.173,2502.3,2502.2,3.99647056]
[1750432854371,19.173,2502.3,2502.2,3.99647056]
[1750432854811,16.781,2502.3,2502.2,3.99647056]
[1750432855231,6.781,2502.3,2502.2,4.79579377]
[1750432855978,10.0,2502.7,2502.6,3.99584432]
[1750432856219,18.621,2502.7,2502.6,3.99584432]
[1750432856379,8.621,2502.7,2502.6,3.99584432]
[1750432856917,0.2034,2502.9,2502.8,3.99552501]
[1750432857083,18.8244,2502.9,2502.8,3.99552501]
[1750432857419,10.0,2502.8,2502.6,3.99583023]
[1750432857669,6.779,2502.7,2502.6,3.99583023]
[1750432858481,6.779,2502.7,2502.4,3.9960307]
[1750432858706,0.55,2502.6,2502.4,3.9960307]
[1750432858941,6.778,2502.5,2502.4,3.9960307]
[1750432860485,6.778,2502.5,2502.3,3.9962373]
[1750432860886,13.1676,2502.4,2501.6,0.8017]
[1750432861085,0.55,2502.2,2501.2,0.8017]
[1750432861277,0.55,2502.2,2500.8,0.40745038]
[1750432861278,10.0,2501.7,2500.9,0.81]
[1750432861484,10.0,2501.5,2501.4,3.99776125]
[1750432861683,6.777,2501.5,2501.4,3.99776125]
[1750432861884,10.0,2501.4,2501.3,3.99783093]
[1750432863730,10.0,2501.4,2501.2,3.99798949]
[1750432864318,10.0,2501.4,2501.3,3.99792108]
[1750432866357,10.0,2501.4,2501.2,3.99800294]
[1750432866556,6.777,2501.3,2501.2,3.99800294]
[1750432870322,11.3028,2501.5,2501.4,3.99776125]
[1750432870525,19.9178,2501.5,2501.3,3.99789457]
[1750432873058,0.0609,2501.4,2501.3,3.99789457]
[1750432873998,0.0609,2501.4,2501.1,3.99817823]
[1750432874148,6.8369,2501.3,2501.2,3.9979925]
[1750432874342,0.0609,2501.2,2500.7,3.75666389]
[1750432874647,10.0,2501.2,2501.1,3.99824077]
[1750432874874,16.776,2501.2,2501.1,3.99824077]
[1750432876081,0.7528,2501.5,2501.4,3.99776125]
[1750432876282,18.613,2501.5,2501.4,3.99776125]
[1750432876983,10.0,2501.4,2501.3,3.99782918]
[1750432877284,0.0609,2501.4,2501.3,3.99782918]
[1750432878016,10.0,2501.4,2501.3,3.99782918]
[1750432879979,9.2239,2501.5,2501.1,0.7921]
[1750432880183,0.0609,2501.4,2501.0,3.99837912]
[1750432880383,7.5384,2501.3,2501.2,3.99808092]
[1750432880584,7.5993,2501.3,2501.2,3.99808092]
[1750432881003,2.80000339,2501.5,2501.4,3.99776125]
[1750432881004,2.33730339,2501.5,2501.4,3.99776125]
[1750432881217,9.9873,2501.5,2501.4,3.99776125]
[1750432882087,0.55,2501.4,2501.3,3.99784071]
[1750432882282,0.55,2501.4,2501.0,3.99832463]
[1750432882526,6.8349,2501.3,2501.2,3.99798851]
[1750432884404,6.774,2501.3,2501.2,3.99798851]
[1750432884587,6.8349,2501.3,2501.2,3.99798851]
[1750432884792,6.8349,2501.3,2501.1,3.99812869]
[1750432884994,0.0609,2501.2,2501.1,3.99812869]
[1750432885190,0.55,2501.2,2500.9,3.99845207]
[1750432885400,0.0609,2501.0,2500.9,3.99845207]
[1750432885813,1.8989,2501.0,2500.9,3.99845207]
[1750432886133,1.838,2501.0,2500.9,3.99845207]
[1750432886950,6.773,2501.1,2500.6,0.7981]
[1750432887117,0.7644,2501.5,2501.2,3.99801411]
[1750432887441,1.8989,2501.3,2501.2,3.99801411]
[1750432888051,1.838,2501.3,2501.1,3.99810223]
[1750432888227,0.0609,2501.2,2501.1,3.99810223]
[1750432888436,0.0609,2501.2,2501.0,3.99836148]
[1750432888758,6.8329,2501.1,2501.0,3.99836148]
[1750432889748,6.772,2501.1,2501.0,3.99836148]
[1750432890635,6.8329,2501.1,2501.0,3.99836148]
[1750432890831,16.8329,2501.1,2500.9,3.99840223]
[1750432891032,0.0609,2500.9,2500.8,3.99868587]
[1750432891422,10.55,2501.0,2500.9,3.99856051]
[1750432891617,10.9806042,2501.0,2500.8,3.99862808]
[1750432891834,11.334,2501.0,2500.7,3.99879858]
[1750432892034,0.0609,2500.9,2500.8,3.9987204]
[1750432892235,0.43065632,2500.9,2500.8,3.9987204]
[1750432892444,0.36975632,2500.9,2500.8,3.9987204]
[1750432892659,0.8254,2501.4,2501.3,3.99792108]
[1750432892852,19.40949604,2501.4,2501.3,3.99792108]
[1750432893022,18.97880373,2501.4,2501.3,3.99792108]
[1750432893268,18.97881387,2501.4,2501.3,3.99792108]
[1750432893574,12.20781387,2501.4,2501.3,3.99792108]
[1750432893751,10.0,2501.3,2500.5,6.771]
[1750432893950,10.0,2501.3,2501.2,3.99808092]
[1750432894160,6.77,2501.2,2501.1,3.99824077]
[1750432894861,7.20066278,2501.2,2501.1,3.99824077]
[1750432895037,6.8309,2501.2,2501.1,3.99824077]
[1750432895234,10.0,2501.5,2500.9,0.0582]
[1750432895446,6.77,2501.3,2501.2,3.99808092]
[1750432895646,7.13980318,2501.3,2501.2,3.99808092]
[1750432895852,7.20070318,2501.3,2501.2,3.99808092]
[1750432896080,0.0609,2501.2,2501.0,3.99832383]
[1750432896286,0.36981549,2501.2,2501.1,3.99824077]
[1750432896439,7.32,2501.3,2501.2,3.99808092]
[1750432896638,7.75071549,2501.3,2501.2,3.99808092]
[1750432897141,7.75071328,2501.3,2501.2,3.99808092]
[1750432897677,7.68981328,2501.3,2501.2,3.99808092]
[1750432897875,7.75071328,2501.3,2501.1,3.99815017]
[1750432898079,7.32,2501.3,2501.2,3.99808092]
[1750432898279,7.75076113,2501.3,2501.1,3.9981511]
[1750432898485,7.3809,2501.3,2501.1,3.9981511]
[1750432898779,7.3809,2501.3,2501.2,3.99808092]
[1750432898954,7.75076074,2501.3,2501.2,3.99808092]
[1750432899150,0.0607,2501.2,2501.0,3.998333]
[1750432899600,6.769,2501.1,2500.8,3.9986873]
[1750432899796,0.6107,2500.9,2500.6,3.99904023]
[1750432899950,6.768,2500.8,2500.7,3.99878252]
[1750432901360,6.768,2500.8,2500.7,4.06008252]
[1750432902368,6.767,2500.9,2500.8,4.0600204]
[1750432902778,6.767,2500.9,2500.8,3.9987204]
[1750432902998,6.767,2500.9,2500.8,4.0600204]
[1750432903717,6.767,2500.9,2500.8,3.9987204]
[1750432904596,6.767,2500.9,2500.7,3.99887701]
[1750432904804,6.767,2500.9,2500.8,3.9987204]
[1750432905878,16.767,2500.9,2500.8,3.9987204]
[1750432907076,16.8277,2500.9,2500.5,4.82588739]
[1750432907276,16.8277,2500.9,2500.7,3.99878248]
[1750432907699,19.03279793,2500.9,2500.2,0.0613]
[1750432907904,0.0607,2500.8,2500.5,3.99913411]
[1750432908106,0.0607,2500.8,2500.6,3.99896744]
[1750432908309,0.0607,2500.8,2500.5,3.99913411]
[1750432908310,19.03279793,2500.9,2500.5,3.99916299]
[1750432908534,0.0607,2500.8,2500.7,3.99888031]
[1750432908699,10.0,2500.9,2500.8,3.9987204]
[1750432908904,18.597,2500.9,2500.8,3.9987204]
[1750432910123,18.597,2500.9,2500.8,4.0600204]
[1750432911137,18.597,2500.9,2500.8,3.9987204]
[1750432911443,18.597,2500.9,2500.8,4.0600204]
[1750432913341,14.36848377,2501.6,2501.0,3.99840063]
[1750432913342,10.5857,2501.6,2501.0,3.99840063]
[1750432913549,0.7827,2501.9,2501.8,3.99712207]
[1750432913745,0.73847315,2501.9,2501.8,4.05842207]
[1750432913961,8.596,2502.0,2501.9,3.9969623]
[1750432914121,0.775,2502.3,2502.1,3.99650668]
[1750432914446,1.833,2502.4,2502.3,3.99632338]
[1750432914748,1.833,2502.4,2502.0,0.7532]
[1750432914749,10.0,2502.3,2502.0,0.7532]
[1750432914949,0.0607,2502.3,2502.1,3.99664278]
[1750432915167,16.762,2502.2,2502.1,3.99664278]
[1750432915308,1.896377,2502.2,2501.8,0.7532]
[1750432915527,8.6547,2502.1,2501.9,3.9968816]
[1750432916125,19.144,2502.1,2502.0,3.99680255]
[1750432916375,10.0,2502.1,2502.0,3.99680255]
[1750432916526,16.762,2502.1,2502.0,4.81130255]
[1750432916845,10.0,2502.1,2502.0,4.81130255]
[1750432917465,1.832,2502.2,2502.1,3.99664282]
[1750432917755,11.832,2502.2,2502.1,3.99664282]
[1750432917980,11.832,2502.2,2502.1,4.05794282]
[1750432918883,10.0,2502.5,2502.2,3.9963759]
[1750432919086,16.76,2502.5,2502.2,3.9963968]
[1750432919244,10.55,2502.5,2502.4,3.99616368]
[1750432919446,17.31,2502.5,2502.4,3.99616368]
[1750432920185,10.55,2502.5,2502.4,3.99616368]
[1750432920504,9.141,2502.7,2502.6,3.99584432]
[1750432920649,2.382,2502.7,2502.6,3.99584432]
[1750432920846,19.141,2502.7,2502.6,3.99584432]
[1750432921288,10.55,2502.6,2502.0,0.7532]
[1750432921491,6.759,2502.5,2502.4,3.99606851]
[1750432921996,10.55,2502.6,2502.5,3.99600399]
[1750432922195,10.55,2502.6,2502.2,0.0613]
[1750432922196,0.2034,2502.9,2502.8,3.99552501]
[1750432922406,0.2034,2502.9,2502.8,4.05682501]
[1750432922567,0.2034,2502.9,2502.8,4.83972501]
[1750432923605,0.2034,2502.9,2502.8,4.77842501]
[1750432923762,10.55,2502.8,2502.4,0.7534]
[1750432923954,1.3397,2502.5,2501.8,0.7534]
[1750432924148,10.0,2502.3,2502.2,3.99648309]
[1750432924777,10.0,2502.3,2501.8,0.8147]
[1750432924950,10.0,2502.1,2502.0,3.99669225]
[1750432925150,10.0,2502.1,2501.9,3.99692597]
[1750432925390,16.756,2502.0,2501.9,3.99692597]
[1750432926988,16.8167,2502.0,2501.7,3.99716016]
[1750432927194,16.8167,2502.0,2501.8,3.99711462]
[1750432927356,16.756,2502.0,2501.9,3.9969623]
[1750432927686,16.756,2502.0,2501.8,3.99703409]
[1750432927892,16.756,2502.0,2501.8,3.99701439]
[1750432928479,16.8154,2502.0,2501.6,4.75078494]
[1750432928792,16.756,2502.0,2501.9,3.9969623]
[1750432928988,16.8154,2502.0,2501.8,3.99703342]
[1750432930165,16.8154,2502.0,2501.7,3.99720952]
[1750432930370,0.0594,2501.8,2501.4,0.795]
[1750432930586,6.754,2501.7,2501.6,3.99744163]
[1750432930781,0.6094,2501.8,2501.7,3.99723367]
[1750432931003,7.3634,2501.8,2501.6,3.99736711]
[1750432931499,7.3634,2501.8,2501.5,3.99753673]
[1750432931708,7.3634,2501.8,2501.6,3.9974355]
[1750432932017,7.3634,2501.8,2501.6,3.99731612]
[1750432932313,7.3634,2501.8,2501.6,3.99742078]
[1750432933038,7.3634,2501.8,2501.3,3.997854]
[1750432933039,10.0,2501.7,2501.3,3.997854]
[1750432933202,10.0,2501.5,2501.3,3.997854]
[1750432933405,16.754,2501.4,2501.3,3.997854]
[1750432933949,16.754,2501.4,2500.9,0.8006]
[1750432934097,14.54798159,2501.3,2500.8,3.9987204]
[1750432934298,14.54798159,2501.3,2500.9,3.99853568]
[1750432934299,10.0,2501.1,2500.9,3.99853568]
[1750432934542,10.0,2501.1,2500.9,3.99851864]
[1750432934839,16.753,2501.0,2500.9,3.99851864]
[1750432935208,0.0594,2500.9,2500.7,3.99878043]
[1750432935439,6.753,2500.8,2500.7,3.99878043]
[1750432935645,16.753,2500.8,2500.7,3.99878043]
[1750432937334,18.4283,2500.8,2500.6,3.99892234]
[1750432937536,18.4877,2500.8,2500.5,3.9991324]
[1750432938275,18.4877,2500.8,2500.6,3.9990316]
[1750432938441,18.4877,2500.8,2500.5,3.9991332]
[1750432938641,18.4877,2500.8,2500.6,3.99890476]
[1750432938851,18.4877,2500.8,2500.5,3.99910846]
[1750432939368,12.02610823,2500.7,2500.5,3.9991808]
[1750432939664,6.753,2500.6,2500.4,3.99923577]
[1750432939864,6.753,2500.6,2500.5,3.99920015]
[1750432940030,8.6374,2500.6,2500.4,3.99928159]
[1750432940227,10.0594,2500.5,2500.0,0.808]
[1750432940422,6.753,2500.4,2500.3,3.99944363]
[1750432943170,7.5716,2500.4,2500.3,3.99944363]
[1750432943379,7.5716,2500.4,2500.1,3.99973112]
[1750432943526,0.0594,2500.3,2500.0,3.99984287]
[1750432943732,6.8114,2500.2,2500.1,3.99984]
[1750432944042,3.13316,2500.3,2500.2,3.99968002]
[1750432944227,9.128,2500.3,2500.2,3.99968002]
[1750432944856,9.128,2500.3,2500.1,3.99984]
[1750432944857,9.128,2500.3,2500.1,3.99975386]
[1750432945058,10.0,2500.2,2499.9,4.00009057]
[1750432945239,10.6094,2500.0,2499.6,4.00050879]
[1750432945443,0.55,2499.8,2499.5,4.00080016]
[1750432945670,0.6094,2499.8,2499.7,4.00048005]
[1750432946735,0.55,2499.8,2499.7,4.00048005]
[1750432947765,0.55,2499.8,2499.5,4.00071431]
[1750432947766,0.0594,2499.7,2499.5,4.00071431]
[1750432947929,10.0,2499.6,2499.5,4.00071431]
[1750432949766,10.0,2499.6,2499.5,3.00071431]
[1750432950341,10.0,2499.6,2499.5,4.00080016]
[1750432950542,11.35596823,2499.6,2499.5,4.00080016]
[1750432950769,0.8172,2500.4,2500.1,3.99984]
[1750432951088,10.0,2500.1,2500.0,3.99990928]
[1750432951434,10.0,2500.1,2499.8,4.00027361]
[1750432951632,10.0,2500.1,2500.0,4.0]
[1750432952172,10.95107925,2500.2,2500.1,3.99984]
[1750432952332,17.70207925,2500.2,2500.1,3.99984]
[1750432952749,17.70207925,2500.2,2500.0,3.99990506]
[1750432952934,17.70207925,2500.2,2500.1,3.99984]
[1750432953140,1.3078,2500.4,2500.3,3.99952005]
[1750432953344,0.55,2500.3,2500.2,3.99960545]
[1750432953583,0.0594,2500.6,2500.3,3.99952005]
[1750432953786,1.826,2500.4,2500.2,3.99958797]
[1750432953941,6.75,2500.3,2500.2,3.99958797]
[1750432954557,7.667,2500.3,2500.0,3.99985312]
[1750432954765,7.667,2500.3,2500.1,3.99981234]
[1750432955094,7.667,2500.3,2499.2,6.751]
[1750432955095,0.6094,2500.0,2499.4,4.00096023]
[1750432955256,0.0594,2499.7,2499.4,4.00086467]
[1750432955457,7.3,2499.7,2499.6,4.0006401]
[1750432955766,7.14803683,2500.3,2500.1,3.99973003]
[1750432956779,7.14803683,2500.3,2500.0,3.99993706]
[1750432957057,0.7796,2500.6,2500.3,3.9993767]
[1750432957289,6.749,2500.5,2500.4,3.99926924]
[1750432957500,6.749,2500.5,2500.3,3.9994815]
[1750432957995,0.8002,2501.2,2500.2,0.762]
[1750432958288,0.0594,2500.9,2500.3,4.06034647]
[1750432958583,1.3761,2500.7,2500.3,3.99937275]
[1750432958793,0.55,2500.5,2500.1,3.99973313]
[1750432958997,6.749,2500.4,2500.1,3.99973313]
[1750432959158,6.8097,2500.4,2499.9,4.00011666]
[1750432959490,1.4368,2500.3,2499.9,4.00009437]
[1750432959650,4.8721549,2500.7,2500.1,3.99969213]
[1750432959851,0.8261,2500.5,2500.2,3.99968002]
[1750432960074,6.748,2500.4,2500.3,3.99943587]
[1750432960281,1.56461,2500.7,2500.4,3.9993601]
[1750432960480,6.748,2500.6,2500.4,4.05626898]
[1750432960689,16.748,2500.6,2500.5,3.99911161]
[1750432960893,10.0,2500.5,2500.4,4.05626484]
[1750432961094,10.0,2500.5,2500.4,3.99926484]
[1750432961474,10.0,2500.5,2500.3,4.76865538]
[1750432962362,10.0,2500.5,2500.3,3.99945538]
[1750432962567,10.0,2500.5,2500.4,3.9993601]
[1750432963089,10.0,2500.5,2500.3,3.99945172]
[1750432963911,11.15395723,2500.5,2500.2,3.99961401]
[1750432964211,11.15395723,2500.5,2500.0,0.057]
[1750432964212,15.15316518,2500.5,2500.0,0.057]
[1750432964375,10.0,2500.3,2500.0,3.99991818]
[1750432964573,16.747,2500.2,2500.1,3.99984]
[1750432966412,10.0,2500.2,2500.1,3.99984]
[1750432966712,10.0,2500.2,2500.1,4.05684]
[1750432967730,10.0,2500.2,2500.1,3.99984]
[1750432970180,10.0,2500.1,2499.4,0.815]
[1750432970518,10.0607,2499.9,2499.5,0.057]
[1750432970726,6.745,2499.8,2499.6,4.00055677]
[1750432971220,6.745,2499.8,2499.5,0.057]
[1750432971221,6.745,2499.8,2499.5,4.057719]
[1750432971519,10.0,2499.7,2499.4,0.758]
[1750432971687,10.0,2499.5,2499.2,0.8423]
[1750432971877,6.745,2499.4,2499.1,4.00131174]
[1750432972303,10.0,2499.1,2498.8,4.7829283]
[1750432972636,10.0,2499.1,2498.8,4.0018283]
[1750432972784,10.0,2499.1,2498.9,4.00168789]
[1750432973184,10.0,2499.1,2499.0,4.00160064]
[1750432973819,10.0,2499.1,2499.0,4.05860064]
[1750432974720,10.0,2499.1,2499.0,4.00160064]
[1750432974922,10.0,2499.1,2499.0,4.05860064]
[1750432975701,0.7781,2499.5,2499.3,4.00106565]
[1750432976022,16.745,2499.4,2499.3,4.00106565]
[1750432976219,18.42577,2499.4,2499.3,4.00106565]
[1750432976425,18.79217429,2499.4,2499.2,4.00120258]
[1750432976636,18.42577,2499.4,2499.2,4.00120258]
[1750432976838,18.42577,2499.4,2499.3,4.00112031]
[1750432977133,18.42577,2499.4,2499.2,4.00120037]
[1750432977307,1.41123823,2499.3,2499.2,4.00120037]
[1750432979249,1.41123823,2499.3,2499.1,4.00135687]
[1750432979564,16.744,2499.2,2499.1,4.00135687]
[1750432979786,16.744,2499.2,2498.8,4.00182781]
[1750432979787,10.0,2499.1,2498.8,4.00182781]
[1750432979942,8.4184,2499.0,2498.8,4.00181459]
[1750432980143,6.744,2499.0,2498.8,4.00192092]
[1750432980369,12.21340217,2499.4,2499.0,0.057]
[1750432980665,6.743,2499.3,2499.2,4.00116108]
[1750432981167,12.5981,2499.5,2499.3,4.00110196]
[1750432981332,6.743,2499.4,2499.3,4.00110196]
[1750432981750,6.743,2499.4,2499.2,4.00119497]
[1750432981979,6.743,2499.4,2499.3,4.00112031]
[1750432982494,8.0307,2499.6,2499.5,4.00080016]
[1750432982495,7.97,2499.6,2499.5,4.00080016]
[1750432982760,7.97,2499.6,2499.5,4.84620016]
[1750432982952,17.97,2499.6,2499.5,4.84620016]
[1750432983155,0.7824,2500.0,2499.5,0.8454]
[1750432983364,6.743,2500.1,2499.7,0.057]
[1750432983569,6.743,2500.0,2499.8,4.00016655]
[1750432983751,6.742,2500.0,2499.9,4.00016]
[1750432983951,6.742,2500.0,2499.9,4.05716]
[1750432984157,10.0,2499.9,2499.8,4.00023513]
[1750432984352,6.742,2500.0,2499.8,4.00023513]
[1750432984545,6.742,2500.0,2499.9,4.00016]
[1750432985566,6.742,2500.0,2499.6,0.057]
[1750432985867,6.742,2500.0,2499.8,4.00021639]
[1750432986069,10.39561618,2500.3,2500.2,3.99968002]
[1750432986375,18.95761618,2500.3,2500.2,3.99968002]
[1750432986535,18.95761618,2500.3,2500.0,3.99998034]
[1750432986731,8.562,2500.3,2500.1,3.9997508]
[1750432986939,10.46065,2500.3,2500.2,3.99968002]
[1750432987379,10.46065,2500.3,2499.9,4.05709892]
[1750432987581,10.52135,2500.3,2500.0,3.99994095]
[1750432987951,10.52135,2500.3,2500.1,3.99982696]
[1750432988130,10.46065,2500.3,2500.2,3.99968002]
[1750432988465,10.46065,2500.3,2500.1,3.99975456]
[1750432988685,1.82,2500.3,2500.2,3.99968002]
[1750432988886,8.561,2500.3,2500.2,3.99968002]
[1750432989569,18.561,2500.3,2500.2,3.99968002]
[1750432990789,10.0,2500.2,2500.1,3.99976611]
[1750432991291,18.561,2500.3,2500.2,3.99968002]
[1750432992378,10.0,2500.3,2500.2,3.99968002]
[1750432992685,16.739,2500.3,2500.2,4.05868002]
[1750432993697,0.779,2501.0,2500.7,3.99888031]
[1750432993893,0.39763857,2501.3,2501.2,3.99807214]
[1750432994202,6.738,2501.3,2501.2,3.99807214]
[1750432994503,8.0287,2501.6,2501.4,3.99763456]
[1750432994504,7.97,2501.6,2501.4,3.99763456]
[1750432994722,7.7164,2501.5,2501.4,3.99763456]
[1750432994880,10.0,2501.4,2500.9,0.8032]
[1750432995085,6.738,2501.3,2501.2,3.99808092]
[1750432995476,10.0,2501.2,2500.9,0.8032]
[1750432995674,10.0,2501.2,2501.1,3.99824077]
[1750432995888,11.80170626,2501.2,2501.0,3.99831636]
[1750432996100,16.737,2501.1,2501.0,3.99831636]
[1750432997007,10.0,2501.1,2501.0,4.05731636]
[1750432997383,10.0,2501.1,2500.7,0.7569]
[1750432997583,16.7947,2501.0,2500.5,0.8155]
[1750432997813,17.286,2501.0,2500.9,3.99856051]
[1750432998168,17.286,2501.0,2500.8,3.99863029]
[1750432998372,17.3447,2501.0,2500.8,3.99863029]
[1750432998683,17.3447,2501.0,2500.8,3.99862571]
[1750432999102,1.73447,2500.9,2500.8,3.99862571]
[1750432999399,1.73447,2500.9,2500.7,3.99877083]
[1750432999615,1.73447,2500.9,2500.5,0.8155]
[1750432999776,10.0,2500.7,2500.5,3.99918453]
[1750432999977,6.7937,2500.8,2500.3,3.9993814]
[1750432999978,6.7937,2500.6,2500.3,3.99943822]
[1750433000305,4.5484924,2501.0,2500.7,3.99877864]
[1750433000306,10.0,2501.0,2500.7,3.99877864]
[1750433000475,10.0,2501.0,2500.3,0.7663]
[1750433000476,0.55,2500.8,2500.3,0.7663]
[1750433000676,10.0587,2500.6,2500.2,3.99962516]
[1750433000883,10.0,2500.4,2500.3,3.99941666]
[1750433004507,10.0,2500.4,2500.2,3.99967221]
[1750433004707,10.0,2500.4,2500.1,4.76604734]
[1750433004905,10.0,2500.4,2500.0,3.99990739]
[1750433004906,10.0,2500.4,2500.0,3.99993302]
[1750433005106,10.0,2500.4,2500.0,3.99984585]
[1750433005307,6.734,2500.3,2500.0,3.99990971]
[1750433005626,6.734,2500.3,2500.0,4.05890971]
[1750433005794,6.734,2500.3,2500.0,3.99990971]
[1750433006200,6.734,2500.3,2500.1,3.99983644]
[1750433006408,6.734,2500.3,2500.0,3.99997207]
[1750433006607,16.734,2500.3,2500.2,3.99968002]